bitfinex/quotes_ETHUSD_20241225
["timestamp","ask_amount","ask_price","bid_price","bid_amount"]
[1735121575988,0.289446,3515.5,3515.2,0.7967]
[1735121576192,2.84441,3515.7,3515.2,0.7967]
[1735121576366,2.84423,3515.9,3515.3,0.2]
[1735121578096,2.844,3516.2,3515.7,0.2]
[1735121578398,2.8441,3516.1,3515.7,0.2]
[1735121578601,0.28441,3516.0,3515.7,0.2]
[1735121579599,3.12857,3516.0,3515.7,0.2]
[1735121579956,0.28441,3516.0,3515.4,0.2]
[1735121580272,2.84432,3515.8,3515.4,0.2]
[1735121580466,3.12855,3516.0,3515.4,0.2]
[1735121580674,0.317855,3515.9,3515.4,0.2]
[1735121582209,2.84434,3515.8,3515.4,0.2]
[1735121582367,2.84367,3516.6,3516.2,0.7779]
[1735121583172,2.84363,3516.7,3516.2,0.7779]
[1735121583363,2.84363,3516.7,3515.1,11.6547944]
[1735121583364,2.844,3516.2,3515.7,0.9779]
[1735121583798,2.844,3516.2,3515.7,0.9279]
[1735121584199,0.2844,3516.1,3515.7,0.7779]
[1735121584396,2.84406,3516.1,3515.7,0.7779]
[1735121584617,2.84406,3516.1,3515.9,0.25]
[1735121584824,2.84406,3516.1,3515.7,0.7779]
[1735121584969,2.84392,3516.3,3515.9,0.25]
[1735121585169,0.05,3516.9,3516.0,0.15]
[1735121585399,2.84367,3516.6,3515.9,0.4]
[1735121585603,2.84383,3516.4,3515.9,0.25]
[1735121585987,2.84364,3516.7,3516.0,0.15]
[1735121586883,2.84373,3516.5,3515.9,0.15]
[1735121587089,0.284373,3516.4,3516.0,0.15]
[1735121587300,0.284373,3516.4,3516.2,0.15]
[1735121587468,0.589339,3516.8,3516.2,0.15]
[1735121587673,0.589339,3516.8,3516.5,0.15]
[1735121587870,2.84343,3516.9,3516.5,0.15]
[1735121588915,2.84253,3518.0,3516.4,0.7779]
[1735121588916,2.84279,3517.7,3516.9,0.15]
[1735121589135,0.05,3517.8,3517.0,0.7779]
[1735121589345,0.05,3517.8,3516.8,0.25]
[1735121589346,0.05,3517.8,3516.8,0.15]
[1735121589551,0.05,3517.4,3516.4,0.7779]
[1735121590232,2.84388,3516.4,3516.1,1.1779]
[1735121590438,2.84414,3516.0,3515.7,0.7779]
[1735121590655,2.84371,3516.6,3516.1,0.15]
[1735121590947,2.8436,3516.7,3516.3,0.25]
[1735121591648,2.8436,3516.7,3516.3,0.15]
[1735121591862,2.84369,3516.6,3516.1,0.15]
[1735121592147,2.84375,3516.5,3516.1,0.15]
[1735121592504,0.40494226,3516.8,3515.9,0.15]
[1735121592755,2.84382,3516.4,3515.8,0.4]
[1735121592923,0.05,3516.7,3515.8,0.4]
[1735121593116,2.84365,3516.6,3515.6,0.15]
[1735121593333,2.84422,3515.9,3515.2,0.15]
[1735121593549,2.84458,3515.5,3515.1,0.15]
[1735121593748,0.05,3516.0,3515.1,0.15]
[1735121594070,2.84478,3515.2,3515.1,0.15]
[1735121594266,2.84486,3515.1,3515.0,1.17395676]
[1735121594882,3.0,3515.6,3515.0,1.17395676]
[1735121595020,2.84486,3515.1,3515.0,1.17395676]
[1735121595424,2.84486,3515.1,3514.6,0.7779]
[1735121595425,2.84512,3514.8,3514.6,0.7779]
[1735121595725,0.284512,3514.7,3514.6,0.7779]
[1735121596047,3.0,3515.6,3514.8,0.15]
[1735121596282,2.84475,3515.3,3514.6,0.9279]
[1735121596504,2.8447,3515.3,3514.7,0.15]
[1735121596790,2.8447,3515.3,3514.6,0.7779]
[1735121596791,2.84511,3514.8,3514.6,0.7779]
[1735121597085,2.84511,3514.8,3514.7,0.15]
[1735121597284,0.28447,3515.2,3514.7,0.15]
[1735121597489,2.84506,3514.9,3514.6,0.7779]
[1735121597668,2.84516,3514.8,3514.4,0.15]
[1735121597870,2.84516,3514.8,3514.7,0.15]
[1735121598258,2.84516,3514.8,3514.5,0.4]
[1735121598460,2.84508,3514.9,3514.5,0.4]
[1735121599109,2.84508,3514.9,3514.5,0.15]
[1735121599396,2.84508,3514.9,3514.7,0.15]
[1735121599607,3.0,3515.6,3514.7,0.15]
[1735121599608,2.84487,3515.1,3514.7,0.15]
[1735121599748,0.05,3515.7,3514.7,0.15]
[1735121599943,2.84498,3515.0,3514.7,0.15]
[1735121600968,2.84504,3514.9,3514.7,0.15]
[1735121601179,2.84511,3514.8,3514.7,0.15]
[1735121601378,2.84511,3514.8,3514.2,0.15]
[1735121601379,2.84549,3514.4,3514.2,0.15]
[1735121601578,2.84503,3514.9,3513.9,1.0367]
[1735121601747,2.84564,3514.2,3513.9,0.7867]
[1735121601948,2.84564,3514.2,3513.4,1.76093514]
[1735121601949,0.05,3514.7,3513.5,0.15]
[1735121602146,2.84608,3513.6,3513.4,1.42395676]
[1735121602342,2.84608,3513.6,3513.4,1.17395676]
[1735121602594,3.135688,3513.6,3513.4,1.17395676]
[1735121602774,2.84616,3513.5,3513.4,1.17395676]
[1735121603091,5.84616,3513.5,3513.4,1.17395676]
[1735121603458,2.84636,3513.3,3512.9,0.4]
[1735121603658,2.84636,3513.3,3513.1,0.25]
[1735121604252,0.3135578,3513.5,3512.9,0.15]
[1735121604454,2.84651,3513.1,3512.9,0.15]
[1735121604784,0.3135578,3513.5,3513.0,0.25]
[1735121605093,0.3135578,3513.5,3513.4,0.25]
[1735121605451,0.573996,3514.8,3514.7,0.25]
[1735121605646,2.97034511,3515.1,3514.7,0.25]
[1735121605647,2.8451,3514.9,3514.7,0.25]
[1735121605880,2.97034511,3515.1,3514.4,0.15]
[1735121606065,2.84492,3515.1,3514.4,0.15]
[1735121606264,2.84492,3515.1,3514.7,0.25]
[1735121606499,0.289492,3515.0,3514.4,0.15]
[1735121606649,0.675,3515.3,3514.8,0.25]
[1735121606988,2.84491,3515.1,3514.8,0.25]
[1735121607184,0.675,3515.3,3514.1,0.9367]
[1735121607392,0.675,3515.3,3514.4,0.15]
[1735121607393,2.84529,3514.6,3514.4,0.15]
[1735121607641,3.129889,3514.5,3514.2,0.15]
[1735121607777,3.129889,3514.5,3514.4,0.15]
[1735121607981,3.129889,3514.5,3514.2,0.15]
[1735121608177,0.284529,3514.5,3514.2,0.15]
[1735121608382,3.0,3515.2,3514.2,0.15]
[1735121608823,0.05,3514.6,3513.8,0.15]
[1735121609129,2.84572,3514.1,3513.8,0.15]
[1735121609803,2.84591,3513.9,3513.7,0.15]
[1735121610002,0.284572,3514.1,3513.7,0.15]
[1735121610186,2.84586,3513.9,3513.7,0.15]
[1735121612193,2.84592,3513.8,3513.4,0.9367]
[1735121612434,3.130322,3514.1,3513.7,0.15]
[1735121612689,0.5975912,3514.0,3513.7,0.15]
[1735121612889,0.5975912,3514.0,3513.3,0.15]
[1735121612890,0.05,3513.9,3513.3,0.15]
[1735121613923,0.05,3513.9,3512.1,8.8099744]
[1735121613924,0.05,3513.9,3513.1,0.15]
[1735121614129,2.84617,3513.5,3513.1,0.15]
[1735121615103,3.4434012,3514.0,3512.1,8.8099744]
[1735121615104,3.4434012,3514.0,3513.4,0.7898]
[1735121615436,2.84601,3513.7,3513.4,0.7898]
[1735121615591,2.84608,3513.6,3513.3,0.15]
[1735121615786,0.64434012,3513.9,3513.3,0.15]
[1735121615787,2.84592,3513.8,3513.3,0.15]
[1735121616191,2.84612,3513.6,3513.3,0.15]
[1735121617695,3.49018012,3513.9,3513.7,0.15]
[1735121618001,2.84584,3513.9,3513.7,0.15]
[1735121618194,0.05,3514.3,3513.4,0.15]
[1735121618391,2.846,3513.7,3513.4,0.15]
[1735121618845,2.846,3513.7,3513.5,0.15]
[1735121620093,0.05,3514.3,3513.5,0.15]
[1735121620294,2.84608,3513.6,3513.5,0.15]
[1735121620706,2.84624,3513.4,3513.3,0.15]
[1735121621121,3.36277507,3514.3,3513.8,0.15]
[1735121621327,2.84591,3513.9,3513.8,0.15]
[1735121621612,6.20835507,3514.3,3513.8,0.15]
[1735121621613,2.84569,3514.1,3513.8,0.15]
[1735121621812,2.84569,3514.1,3513.4,0.7574]
[1735121621813,5.84569,3514.1,3514.0,0.15]
[1735121622051,5.84569,3514.1,3513.8,0.15]
[1735121622195,2.84569,3514.1,3513.8,0.15]
[1735121622390,0.38920756,3514.0,3513.8,0.15]
[1735121624746,0.05,3514.9,3514.6,0.15]
[1735121625109,2.84519,3514.7,3514.6,0.15]
[1735121625996,0.05,3515.2,3514.8,0.15]
[1735121626670,0.625,3515.3,3515.0,0.15]
[1735121626975,3.4697,3515.3,3515.0,0.15]
[1735121627143,2.84486,3515.1,3515.0,0.15]
[1735121627345,0.05,3515.0,3514.5,0.15]
[1735121627585,0.05,3515.0,3514.4,0.15]
[1735121627789,0.05,3515.0,3513.3,2.84631]
[1735121627790,2.84545,3514.4,3514.3,0.15]
[1735121628335,3.129995,3514.4,3514.3,0.15]
[1735121628658,3.129995,3514.4,3513.9,0.7817]
[1735121628659,0.284545,3514.4,3513.9,0.7817]
[1735121628860,0.05,3515.0,3514.0,0.15]
[1735121629067,0.34697,3515.2,3513.5,0.15]
[1735121629068,2.84608,3513.6,3513.5,0.15]
[1735121629239,0.05,3514.5,3514.2,0.15]
[1735121629431,2.84551,3514.3,3514.2,0.15]
[1735121629651,3.419594,3514.3,3514.2,0.15]
[1735121630180,2.84567,3514.1,3514.0,0.15]
[1735121631745,2.84559,3514.2,3513.6,0.15]
[1735121631949,2.796,3513.7,3513.6,0.15]
[1735121633356,2.84583,3514.0,3513.6,0.15]
[1735121633556,1.62220077,3514.5,3514.2,0.15]
[1735121633787,2.84556,3514.3,3514.2,0.15]
[1735121634092,3.57686908,3514.3,3514.2,0.15]
[1735121634320,0.73130908,3514.3,3513.8,0.15]
[1735121634496,0.73130908,3514.3,3512.3,2.84706]
[1735121634497,2.84601,3513.7,3513.6,0.15]
[1735121634790,2.84616,3513.5,3513.4,0.15]
[1735121637958,1.57220077,3514.5,3514.2,0.15]
[1735121638148,2.84551,3514.3,3514.2,0.15]
[1735121638351,3.28728108,3514.3,3514.2,0.15]
[1735121638553,2.84567,3514.1,3514.0,0.15]
[1735121639492,2.84584,3513.9,3513.8,0.15]
[1735121640697,2.89584,3513.9,3513.5,0.15]
[1735121640852,3.130514,3513.8,3513.7,0.15]
[1735121641054,2.84593,3513.8,3513.7,0.15]
[1735121642731,3.28728108,3514.3,3514.2,0.15]
[1735121644852,2.84551,3514.3,3514.2,0.15]
[1735121645149,2.84551,3514.3,3514.2,0.933]
[1735121645655,2.84551,3514.3,3514.2,0.15]
[1735121648619,1.63306888,3514.6,3514.5,0.15]
[1735121649158,1.63306888,3514.6,3514.5,0.933]
[1735121649363,1.63306888,3514.6,3514.5,1.310858]
[1735121649739,1.63306888,3514.6,3514.5,0.933]
[1735121653627,0.625,3515.3,3515.2,0.15]
[1735121654659,3.4697,3515.3,3515.2,0.15]
[1735121657268,0.625,3515.3,3515.2,0.9415]
[1735121657474,0.625,3515.3,3515.2,1.320136]
[1735121657780,0.625,3515.3,3515.2,3.78628]
[1735121658266,0.625,3515.3,3515.2,0.9415]
[1735121660088,0.625,3515.3,3515.0,2.84493]
[1735121660089,6.48820511,3517.4,3516.9,0.15]
[1735121660230,2.84317,3517.2,3517.1,0.15]
[1735121661596,2.84317,3517.2,3515.1,0.56643228]
[1735121661597,2.84333,3517.0,3516.5,0.15]
[1735121661797,2.84365,3516.6,3516.5,0.15]
[1735121661930,2.84381,3516.4,3516.3,0.15]
[1735121662131,3.480036,3516.4,3516.3,0.15]
[1735121664191,0.636226,3516.4,3515.8,0.15]
[1735121664393,2.84438,3515.7,3515.6,0.15]
[1735121669359,0.6748,3515.5,3513.8,1.17395676]
[1735121669558,2.84486,3515.1,3515.0,0.15]
[1735121671775,2.79486,3515.1,3515.0,0.15]
[1735121671920,2.84472,3515.3,3515.2,0.15]
[1735121672365,0.6748,3515.5,3513.6,8.8099744]
[1735121672366,3.51934,3515.5,3515.4,0.15]
[1735121672570,0.351934,3515.5,3515.4,0.15]
[1735121672874,2.84438,3515.7,3515.4,0.15]
[1735121673277,2.84438,3515.7,3515.6,0.15]
[1735121673618,2.84422,3515.9,3514.9,0.8286]
[1735121673619,3.51897,3516.0,3515.8,0.15]
[1735121673836,3.51897,3516.0,3514.9,0.8286]
[1735121673837,2.84399,3516.2,3516.0,0.15]
[1735121674039,3.480254,3516.2,3516.0,0.15]
[1735121674737,2.84359,3516.7,3516.5,0.15]
[1735121674920,2.84365,3516.6,3516.5,0.15]
[1735121677697,2.79365,3516.6,3516.5,0.15]
[1735121678778,3.56302802,3517.0,3516.8,0.15]
[1735121678779,2.84341,3516.9,3516.8,0.15]
[1735121679097,3.5867135,3516.9,3516.8,0.15]
[1735121681075,2.84357,3516.7,3516.6,0.15]
[1735121685151,3.5867335,3516.9,3516.8,0.15]
[1735121686274,2.84357,3516.7,3516.6,0.15]
[1735121689316,0.7433035,3516.9,3516.5,0.389749]
[1735121689317,2.84365,3516.6,3516.5,0.389749]
[1735121689514,3.48669035,3516.6,3516.5,0.389749]
[1735121690859,0.56302802,3517.0,3516.5,4.168839]
[1735121691082,4.8389902,3518.4,3516.5,4.168839]
[1735121691083,4.8389902,3518.4,3517.3,0.9354]
[1735121691279,6.41178589,3518.1,3517.3,0.9354]
[1735121691918,2.84255,3518.0,3517.3,0.9354]
[1735121692418,0.6748,3518.4,3517.3,0.9354]
[1735121692632,2.84244,3518.2,3517.3,0.9354]
[1735121692782,2.84247,3518.1,3517.3,0.9354]
[1735121692963,0.02670912,3517.4,3517.3,0.9354]
[1735121694671,2.8426,3518.0,3517.3,0.9354]
[1735121695209,0.02670912,3517.4,3517.3,0.9354]
[1735121695449,0.57258886,3518.6,3517.3,0.9354]
[1735121695731,2.84212,3518.5,3517.4,2.843]
[1735121696125,2.84212,3518.5,3517.4,3.6284]
[1735121696323,2.84192,3518.8,3517.4,12.4383744]
[1735121696535,2.84197,3518.7,3517.4,12.4383744]
[1735121697267,2.84188,3518.8,3517.4,12.4383744]
[1735121697611,0.56562632,3519.0,3517.4,12.4383744]
[1735121697811,0.31741663,3517.5,3517.4,12.4383744]
[1735121698008,0.56562632,3519.0,3518.8,0.15]
[1735121698217,2.84675,3519.0,3518.8,0.15]
[1735121698451,0.03087045,3518.9,3518.8,0.15]
[1735121698627,2.87266045,3518.9,3518.8,0.15]
[1735121700658,2.84196,3518.7,3518.0,0.8262]
[1735121701017,0.02521035,3518.6,3518.0,0.8262]
[1735121701443,2.8418,3518.9,3518.0,0.8262]
[1735121701645,0.02520642,3518.8,3518.1,0.8262]
[1735121701844,0.005,3519.0,3518.2,8.8099744]
[1735121702162,2.84199,3518.7,3518.2,8.8099744]
[1735121702394,2.84218,3518.5,3518.2,8.8099744]
[1735121702677,0.02520705,3518.4,3518.2,8.8099744]
[1735121703181,2.84204,3518.6,3518.2,8.8099744]
[1735121703361,0.02551177,3518.3,3518.2,8.8099744]
[1735121703562,0.005,3519.0,3518.2,8.8099744]
[1735121703714,2.86779177,3518.3,3518.2,8.8099744]
[1735121704070,2.84211,3518.6,3518.2,8.8099744]
[1735121704278,0.02551177,3518.3,3518.2,8.8099744]
[1735121704683,2.84188,3518.8,3518.2,8.8099744]
[1735121705015,2.84205,3518.6,3518.1,0.8262]
[1735121705273,1.107205,3518.6,3517.3,8.8099744]
[1735121705621,2.84245,3518.1,3517.4,0.8262]
[1735121706145,0.823,3518.6,3517.4,0.8262]
[1735121706348,2.8422,3518.4,3517.4,0.8262]
[1735121706691,2.84252,3518.0,3517.4,0.8262]
[1735121707391,0.58256626,3518.4,3517.4,0.8262]
[1735121707589,2.84243,3518.2,3517.4,0.8262]
[1735121707882,2.84245,3518.1,3517.4,0.8262]
[1735121708177,0.823,3518.6,3517.4,0.8262]
[1735121708387,2.84228,3518.3,3517.4,0.8262]
[1735121708691,2.84212,3518.5,3517.4,0.8262]
[1735121709259,2.8422,3518.4,3517.5,0.366922]
[1735121709450,2.8422,3518.4,3517.6,0.8262]
[1735121710349,3.39868634,3518.9,3517.6,0.8262]
[1735121710350,2.84231,3518.3,3517.6,0.8262]
[1735121710550,3.39868634,3518.9,3517.6,0.8262]
[1735121710761,2.84246,3518.1,3517.6,0.8262]
[1735121710960,0.823,3518.5,3517.6,0.8262]
[1735121711157,2.84268,3517.9,3517.6,0.8262]
[1735121712095,2.84268,3517.9,3517.0,8.8099744]
[1735121712096,2.84228,3518.3,3517.1,0.8262]
[1735121712244,0.823,3517.4,3516.7,0.8262]
[1735121712440,0.823,3517.4,3516.4,0.8262]
[1735121712695,2.84352,3516.8,3516.4,0.8262]
[1735121713102,2.84308,3517.3,3516.4,0.8262]
[1735121713103,2.84359,3516.7,3516.4,0.8262]
[1735121713411,2.84343,3516.9,3516.4,0.8262]
[1735121713704,3.0,3517.7,3515.8,8.8099744]
[1735121713705,2.84308,3517.4,3516.6,0.8262]
[1735121714160,0.58098561,3518.2,3516.7,0.8262]
[1735121714366,2.84195,3518.7,3517.2,0.8262]
[1735121714675,0.823,3518.9,3517.2,0.8262]
[1735121714989,2.84204,3518.6,3517.5,0.808]
[1735121715546,0.005,3519.0,3517.6,2.84279]
[1735121715747,0.005,3519.0,3518.3,2.8422]
[1735121715941,0.005,3519.0,3518.1,2.84236]
[1735121716175,0.005,3519.0,3518.2,0.808]
[1735121716488,0.005,3519.0,3517.9,8.8099744]
[1735121716489,0.005,3519.0,3518.4,0.808]
[1735121716844,0.005,3519.0,3518.5,8.8099744]
[1735121717074,0.005,3519.0,3518.7,0.808]
[1735121717278,0.005,3519.0,3518.9,0.7823]
[1735121717481,0.12706009,3519.1,3519.0,15.6839844]
[1735121717737,2.83995,3521.2,3519.5,0.7823]
[1735121717941,2.84018,3520.9,3519.6,0.7823]
[1735121718244,2.84018,3520.9,3519.2,2.8415]
[1735121718245,0.645127,3520.8,3519.8,0.7823]
[1735121718379,2.8401,3521.0,3519.8,0.7823]
[1735121718578,0.0008,3521.1,3519.8,0.7823]
[1735121718783,2.84045,3520.6,3519.8,0.7823]
[1735121719022,2.84023,3520.9,3519.8,0.7823]
[1735121719184,0.0008,3521.1,3519.9,0.7823]
[1735121719185,0.284103,3520.8,3519.9,0.7823]
[1735121719379,2.84018,3521.0,3519.9,0.7823]
[1735121719619,2.84019,3520.9,3519.9,0.7823]
[1735121719883,0.0008,3521.1,3519.9,0.7823]
[1735121720104,2.84038,3520.7,3519.9,0.7823]
[1735121720299,0.284038,3520.6,3519.9,0.7823]
[1735121721473,2.84038,3520.7,3519.9,0.7823]
[1735121721670,2.84039,3520.7,3519.9,0.7823]
[1735121722013,2.84083,3520.1,3519.9,0.7823]
[1735121722270,2.8407,3520.3,3519.9,0.7823]
[1735121722478,2.84083,3520.1,3519.9,0.7823]
[1735121722769,3.124913,3520.1,3519.9,0.7823]
[1735121723278,2.84064,3520.4,3519.9,0.7823]
[1735121723638,2.84049,3520.6,3519.9,0.7823]
[1735121724032,3.0,3520.9,3519.9,0.7823]
[1735121724269,2.8405,3520.5,3519.9,0.7823]
[1735121725376,3.12455,3520.5,3519.9,0.7823]
[1735121725974,0.28405,3520.5,3519.9,0.7823]
[1735121726122,2.84058,3520.4,3519.9,0.7823]
[1735121726872,2.8401,3521.0,3519.9,0.7823]
[1735121727182,2.84046,3520.6,3519.9,0.7823]
[1735121727656,2.8401,3521.0,3519.9,0.7823]
[1735121727657,2.84052,3520.5,3519.9,0.7823]
[1735121728217,2.84032,3520.8,3519.9,0.7823]
[1735121728417,0.284032,3520.7,3519.9,0.7823]
[1735121728678,0.771,3521.1,3519.9,0.7823]
[1735121728679,2.84027,3520.8,3519.9,0.7823]
[1735121729052,0.0008,3521.1,3519.9,0.7823]
[1735121729255,2.84027,3520.8,3519.9,0.7823]
[1735121729575,0.0008,3521.1,3519.9,0.7823]
[1735121729576,2.84042,3520.6,3519.9,0.7823]
[1735121729945,0.0008,3521.1,3519.9,0.7823]
[1735121730182,2.84027,3520.8,3519.9,0.7823]
[1735121730727,0.584073,3521.0,3519.9,0.7823]
[1735121730926,2.84018,3520.9,3519.9,0.7823]
[1735121731175,0.584073,3521.0,3519.9,0.7823]
[1735121731475,2.84043,3520.6,3519.9,0.7823]
[1735121732074,2.84043,3520.6,3519.9,1.171673]
[1735121733324,2.84023,3520.9,3519.9,1.171673]
[1735121733773,2.84023,3520.9,3520.0,0.3588]
[1735121734125,0.0008,3521.1,3520.1,8.8099744]
[1735121734326,0.0008,3521.1,3520.5,2.84049]
[1735121734632,0.0008,3521.1,3520.4,2.84051]
[1735121734929,0.0008,3521.1,3520.2,3.2466769]
[1735121735262,0.0008,3521.1,3520.8,8.8099744]
[1735121735424,0.0008,3521.1,3520.8,9.45818791]
[1735121735626,0.0008,3521.1,3520.0,8.8099744]
[1735121735962,0.04807753,3521.4,3520.0,8.8099744]
[1735121735963,0.04807753,3521.4,3520.4,2.84057]
[1735121736336,0.04807753,3521.4,3520.3,2.84066]
[1735121736337,2.88785753,3521.4,3520.3,2.84066]
[1735121736581,2.88785753,3521.4,3520.0,8.8099744]
[1735121736885,2.88785753,3521.4,3520.2,0.7588]
[1735121737101,0.04807753,3521.4,3520.3,0.7588]
[1735121737395,0.04807753,3521.4,3520.7,0.8275]
[1735121737597,2.88788753,3521.4,3520.7,0.8275]
[1735121737738,2.83987,3521.3,3520.7,0.8275]
[1735121738293,0.04807753,3521.4,3520.7,1.79124744]
[1735121738492,0.04807753,3521.4,3520.7,0.8275]
[1735121739451,2.83987,3521.3,3520.7,0.8275]
[1735121739706,0.04807753,3521.4,3520.7,0.8275]
[1735121740514,2.8401,3521.0,3520.7,0.8275]
[1735121740956,2.83995,3521.2,3520.7,0.8275]
[1735121741156,0.04807753,3521.4,3520.7,0.8275]
[1735121741822,0.04807753,3521.4,3520.7,1.194308]
[1735121742162,0.04807753,3521.4,3520.7,0.8275]
[1735121743118,2.88785753,3521.4,3520.7,0.8275]
[1735121745860,0.04807753,3521.4,3520.7,0.8275]
[1735121746225,0.04807753,3521.4,3520.9,0.8312]
[1735121746468,0.04807753,3521.4,3520.9,3.67136]
[1735121746761,0.04807753,3521.4,3521.1,0.8312]
[1735121746959,0.04807753,3521.4,3521.2,11.6498444]
[1735121747119,0.04807753,3521.4,3521.3,3.67106]
[1735121747356,0.04807753,3521.4,3521.3,13.0310344]
[1735121747777,0.04807753,3521.4,3521.3,48.0310344]
[1735121748648,0.0060901,3521.8,3521.3,47.1998344]
[1735121748848,0.0060901,3521.8,3521.7,12.4807044]
[1735121750762,0.1746278,3522.6,3522.0,0.8312]
[1735121750964,0.1746278,3522.6,3522.3,0.8312]
[1735121751174,0.0068864,3523.6,3522.6,0.7153722]
[1735121751467,0.0068864,3523.6,3521.8,0.25]
[1735121751468,0.0068864,3523.6,3523.0,13.0296544]
[1735121751780,0.0068864,3523.6,3523.0,12.4796544]
[1735121752191,0.36741663,3524.1,3523.6,3.0]
[1735121752519,0.36741663,3524.1,3523.3,0.25]
[1735121752520,0.36741663,3524.1,3524.0,7.46888]
[1735121752815,2.53105872,3525.7,3524.6,0.8312]
[1735121753182,0.02611293,3525.6,3525.4,8.8099744]
[1735121753356,0.17,3525.7,3525.5,0.8312]
[1735121753552,0.17,3526.0,3525.7,0.8312]
[1735121754365,0.17,3526.0,3525.6,8.8099744]
[1735121754618,0.17,3526.0,3525.2,0.8312]
[1735121755149,0.02629279,3525.9,3525.2,0.8312]
[1735121756497,0.17,3526.0,3525.3,0.8312]
[1735121756650,0.0263919,3525.8,3525.3,3.66783]
[1735121756849,0.02640371,3525.9,3525.5,8.8099744]
[1735121757117,0.17,3526.0,3525.8,8.8099744]
[1735121757329,0.17,3526.0,3525.9,0.8312]
[1735121757754,0.17,3526.0,3525.9,9.6411744]
[1735121758158,0.17,3526.0,3525.9,10.1911744]
[1735121758370,0.17,3526.0,3525.9,10.87858181]
[1735121758668,0.17,3526.0,3525.9,13.87858181]
[1735121760044,0.17,3526.0,3525.9,9.6411744]
[1735121760528,3.33478,3527.0,3525.9,0.8312]
[1735121760733,0.4995,3527.0,3525.9,0.8312]
[1735121760937,0.02806207,3526.9,3525.9,0.8312]
[1735121761285,0.02806207,3526.9,3526.2,2.83588]
[1735121761481,0.4995,3527.0,3526.2,2.83588]
[1735121761482,0.02715889,3526.8,3526.4,0.8324]
[1735121761692,0.02715889,3526.8,3526.7,0.8324]
[1735121761891,0.15609375,3527.0,3526.8,2.83543]
[1735121762097,0.15609375,3527.0,3526.9,0.02834503]
[1735121762332,0.15609375,3527.0,3526.7,0.8324]
[1735121762679,0.15609375,3527.0,3526.3,8.8099744]
[1735121762918,0.15609375,3527.0,3526.3,9.6423744]
[1735121763235,0.15609375,3527.0,3526.4,2.83574]
[1735121763437,0.15609375,3527.0,3526.4,2.86408984]
[1735121763738,0.15609375,3527.0,3526.5,2.83566]
[1735121763941,0.15609375,3527.0,3526.5,0.68748241]
[1735121764774,0.7812,3528.2,3526.5,9.49745681]
[1735121765011,2.83458,3527.9,3526.5,9.49745681]
[1735121765192,0.02816548,3528.1,3526.6,2.83556]
[1735121765394,0.7812,3528.2,3526.7,0.366708]
[1735121765395,0.02813008,3527.8,3526.7,0.366708]
[1735121765682,0.02813684,3527.7,3526.7,0.366708]
[1735121765901,0.7812,3528.2,3526.7,0.366708]
[1735121766115,0.02818402,3528.1,3526.7,0.366708]
[1735121766339,0.02818402,3528.1,3527.5,2.83484]
[1735121766488,0.36741663,3530.4,3527.6,6.8099]
[1735121766689,0.36741663,3530.4,3528.6,2.83395]
[1735121766690,2.83279,3530.1,3528.6,2.83395]
[1735121766941,0.36741663,3530.4,3528.8,0.8324]
[1735121767156,0.36741663,3530.4,3529.2,0.55]
[1735121767458,0.36741663,3530.4,3529.6,0.8324]
[1735121767633,0.36741663,3530.4,3529.6,3.86072264]
[1735121767970,0.36741663,3530.4,3529.6,5.15819669]
[1735121768110,7.8e-06,3529.7,3529.6,5.12987405]
[1735121768454,7.8e-06,3529.7,3529.6,15.26042705]
[1735121768659,0.36741663,3530.4,3530.1,5.83278]
[1735121768946,0.36741663,3530.4,3530.1,7.13025405]
[1735121769154,0.36741663,3530.4,3530.1,8.67567946]
[1735121769364,0.36741663,3530.4,3530.3,2.83262]
[1735121769661,0.00344191,3531.2,3530.3,2.798758]
[1735121769796,0.00344191,3531.2,3530.1,1.54542541]
[1735121769797,0.00344191,3531.2,3530.4,0.02831143]
[1735121770014,0.00344191,3531.2,3530.1,1.54542541]
[1735121770015,0.00344191,3531.2,3530.3,2.8326]
[1735121770016,0.06227891,3531.2,3530.3,2.8326]
[1735121770211,2.89417891,3531.2,3530.1,0.8324]
[1735121770421,0.36753789,3531.1,3529.4,0.8324]
[1735121770667,0.36753789,3531.1,3528.2,3.2955179]
[1735121770668,2.83197,3531.1,3528.2,3.2955179]
[1735121770809,2.83243,3530.6,3528.7,0.25]
[1735121771016,0.058837,3531.1,3530.2,2.83266]
[1735121771309,0.058837,3531.1,3530.0,0.8324]
[1735121771628,0.058837,3531.1,3530.3,2.83255]
[1735121771835,0.058837,3531.1,3530.0,0.8324]
[1735121772155,0.00344191,3531.2,3530.0,0.8324]
[1735121772719,0.00344191,3531.2,3530.0,3.66525]
[1735121772950,0.00344191,3531.2,3530.0,0.8324]
[1735121773158,0.00344191,3531.2,3530.1,2.83272]
[1735121773333,0.00344191,3531.2,3530.4,2.83252]
[1735121773538,0.00344191,3531.2,3530.6,2.83232]
[1735121773737,0.00344191,3531.2,3530.3,2.83258]
[1735121774075,0.00344191,3531.2,3530.0,3.66519]
[1735121774223,0.00344191,3531.2,3530.0,0.8324]
[1735121774424,0.28353119,3531.1,3529.5,0.8324]
[1735121774622,2.83213,3530.9,3528.9,0.8324]
[1735121774873,2.83213,3530.9,3528.5,2.83403]
[1735121774874,3.61452,3529.5,3528.3,0.8324]
[1735121775040,2.83283,3530.1,3528.7,2.83386]